bitfinex-derivatives/quotes_BTCF0:USTF0_20250108
["timestamp","ask_amount","ask_price","bid_price","bid_amount"]
[1736339221393,0.44425933,95189.0,95178.0,0.003]
[1736339221600,0.44281933,95189.0,95183.0,0.052548]
[1736339223312,0.052546,95188.0,95182.0,0.3608]
[1736339223808,0.052546,95188.0,95183.0,0.002]
[1736339224811,0.052546,95188.0,95182.0,0.3628]
[1736339225111,0.052546,95188.0,95182.0,0.415349]
[1736339225505,0.052546,95188.0,95183.0,0.052548]
[1736339225810,0.44425933,95189.0,95182.0,0.3628]
[1736339226008,0.4295,95189.0,95187.0,0.052546]
[1736339226201,0.3608,95199.0,95197.0,0.05254]
[1736339226913,0.052542,95195.0,95187.0,0.052546]
[1736339227210,0.052542,95195.0,95182.0,0.3628]
[1736339227211,0.3608,95199.0,95182.0,0.3628]
[1736339227412,0.3608,95199.0,95193.0,0.052543]
[1736339227614,0.41334,95199.0,95193.0,0.052543]
[1736339227913,0.3608,95199.0,95193.0,0.052543]
[1736339228307,0.3608,95199.0,95183.0,0.002]
[1736339228509,0.052541,95196.0,95188.0,0.052545]
[1736339228709,0.052541,95196.0,95182.0,0.3638]
[1736339228914,0.3608,95199.0,95198.0,0.05254]
[1736339229502,0.0634,95207.0,95206.0,0.052536]
[1736339229815,0.07012,95218.0,95216.0,0.05253]
[1736339230118,0.08166322,95218.0,95216.0,0.05253]
[1736339230410,0.1,95220.0,95219.0,0.052528]
[1736339232314,0.102,95220.0,95219.0,0.052528]
[1736339234119,0.102,95220.0,95219.0,0.416928]
[1736339234505,0.102,95220.0,95219.0,0.777728]
[1736339235306,0.102,95220.0,95219.0,0.79078588]
[1736339237018,0.1,95240.0,95239.0,0.052517]
[1736339237319,0.1132307,95240.0,95239.0,0.413317]
[1736339237823,0.1,95240.0,95239.0,0.413317]
[1736339238218,0.102,95240.0,95239.0,0.413317]
[1736339244021,0.102,95240.0,95239.0,0.3608]
[1736339244226,0.052517,95239.0,95234.0,0.41692]
[1736339244423,0.102,95240.0,95234.0,0.41692]
[1736339244620,0.052519,95236.0,95234.0,0.41692]
[1736339244820,0.0634,95235.0,95234.0,0.41692]
[1736339247321,0.0634,95235.0,95219.0,0.052528]
[1736339247521,0.0634,95235.0,95211.0,0.36597532]
[1736339247522,0.3608,95227.0,95211.0,0.36597532]
[1736339247725,0.052525,95225.0,95222.0,0.052526]
[1736339248525,0.3608,95227.0,95223.0,0.052526]
[1736339248830,0.3608,95227.0,95225.0,0.052525]
[1736339249218,0.0634,95235.0,95222.0,0.3608]
[1736339249419,0.0634,95235.0,95233.0,0.05252]
[1736339252224,0.01278289,95237.0,95236.0,0.052519]
[1736339252431,0.052516,95242.0,95236.0,0.052519]
[1736339252728,0.052516,95242.0,95238.0,0.052518]
[1736339254329,0.0639,95246.0,95230.0,0.3608]
[1736339254527,0.052518,95238.0,95232.0,0.052521]
[1736339254833,0.052518,95238.0,95234.0,0.05252]
[1736339255422,0.11304946,95240.0,95230.0,0.3608]
[1736339255423,0.065,95237.0,95230.0,0.3608]
[1736339255623,0.065,95237.0,95228.0,0.3644]
[1736339255624,0.052522,95231.0,95228.0,0.3644]
[1736339255925,0.052522,95231.0,95228.0,0.416923]
[1736339256823,0.1335,95237.0,95231.0,0.052522]
[1736339257432,0.052522,95231.0,95228.0,0.3644]
[1736339258131,0.052522,95231.0,95228.0,0.416923]
[1736339260232,0.052522,95231.0,95228.0,0.052523]
[1736339260436,0.1335,95237.0,95228.0,0.052523]
[1736339260640,0.052523,95230.0,95228.0,0.052523]
[1736339261542,0.05252,95235.0,95225.0,0.052525]
[1736339261835,0.1335,95237.0,95233.0,0.052521]
[1736339261836,0.05252,95234.0,95233.0,0.052521]
[1736339263037,0.05252,95234.0,95224.0,0.3608]
[1736339263344,0.05252,95234.0,95157.0,0.09464167]
[1736339263345,0.3608,95227.0,95199.0,0.16232746]
[1736339263540,0.413339,95200.0,95199.0,0.02120733]
[1736339264541,0.413339,95200.0,95192.0,0.3608]
[1736339264542,0.36089183,95200.0,95192.0,0.3608]
[1736339264745,0.052541,95196.0,95192.0,0.3608]
[1736339265537,0.01281591,95200.0,95192.0,0.3608]
[1736339265841,0.052542,95195.0,95192.0,0.3608]
[1736339266437,0.052543,95193.0,95192.0,0.3608]
[1736339267037,0.01281591,95200.0,95192.0,0.3608]
[1736339267240,0.06535491,95200.0,95195.0,0.052541]
[1736339267436,9.183e-05,95200.0,95199.0,0.052539]
[1736339268144,9.183e-05,95200.0,95196.0,0.052541]
[1736339268542,9.183e-05,95200.0,95193.0,0.3608]
[1736339268739,9.183e-05,95200.0,95199.0,0.052539]
[1736339270035,9.183e-05,95200.0,95199.0,0.053539]
[1736339270743,9.183e-05,95200.0,95199.0,0.054539]
[1736339271541,9.183e-05,95200.0,95199.0,0.052539]
[1736339271747,0.01306805,95220.0,95207.0,0.3644]
[1736339271945,0.052524,95227.0,95218.0,0.3608]
[1736339272145,0.052524,95227.0,95220.0,0.10609554]
[1736339273043,0.052524,95227.0,95226.0,0.3608]
[1736339273742,0.052524,95227.0,95225.0,0.052525]
[1736339274343,0.01219552,95230.0,95220.0,0.10609554]
[1736339274542,0.052521,95233.0,95227.0,0.052524]
[1736339276755,0.052521,95233.0,95228.0,0.052523]
[1736339277353,0.052521,95233.0,95220.0,0.10609554]
[1736339277655,0.052521,95233.0,95229.0,0.052523]
[1736339277844,0.14656057,95239.0,95220.0,0.10609554]
[1736339278046,0.36676847,95239.0,95220.0,0.10609554]
[1736339278246,0.052519,95236.0,95227.0,0.052523]
[1736339278447,0.052519,95236.0,95227.0,0.052524]
[1736339278646,0.05252,95235.0,95227.0,0.052524]
[1736339279546,0.05252,95234.0,95227.0,0.052524]
[1736339280156,0.003,95235.0,95227.0,0.053524]
[1736339280355,0.052521,95232.0,95227.0,0.053524]
[1736339280556,0.052523,95228.0,95227.0,0.001]
[1736339280856,0.3608,95230.0,95227.0,0.001]
[1736339281047,0.052523,95228.0,95227.0,0.001]
[1736339281247,0.3608,95230.0,95228.0,0.052523]
[1736339281447,0.3608,95230.0,95229.0,0.052523]
[1736339281850,0.003,95232.0,95231.0,0.052522]
[1736339283261,0.1,95240.0,95239.0,0.052517]
[1736339283559,0.1,95240.0,95239.0,0.413317]
[1736339286053,0.1,95240.0,95239.0,0.414317]
[1736339287257,0.1,95240.0,95239.0,0.053517]
[1736339288957,0.1689,95240.0,95239.0,0.001]
[1736339289563,0.24516885,95240.0,95239.0,0.001]
[1736339289855,0.24516885,95240.0,95219.0,0.3608]
[1736339289856,0.35126439,95240.0,95219.0,0.3608]
[1736339290059,0.052525,95227.0,95220.0,0.10609554]
[1736339290258,0.052525,95227.0,95224.0,0.052525]
[1736339290564,0.052527,95222.0,95220.0,0.052528]
[1736339290751,0.052527,95222.0,95221.0,0.052527]
[1736339293664,0.054527,95222.0,95220.0,0.001]
[1736339293859,0.415327,95222.0,95220.0,0.001]
[1736339294063,0.3608,95222.0,95208.0,0.052534]
[1736339294258,0.3608,95210.0,95208.0,0.052534]
[1736339294451,0.065,95209.0,95208.0,0.052534]
[1736339296654,0.067,95209.0,95208.0,0.053534]
[1736339297660,0.07957583,95209.0,95208.0,0.053534]
[1736339298568,0.13210983,95209.0,95208.0,0.001]
[1736339298768,0.052537,95204.0,95198.0,0.05254]
[1736339299270,0.3608,95201.0,95191.0,0.47064]
[1736339299460,0.3608,95201.0,95192.0,0.3608]
[1736339299660,0.3608,95201.0,95197.0,0.052541]
[1736339299864,0.3608,95201.0,95198.0,0.002]
[1736339300261,0.052537,95204.0,95203.0,0.052537]
[1736339300262,0.002,95204.0,95203.0,0.052537]
[1736339300765,0.002,95204.0,95200.0,0.3608]
[1736339300766,0.07757583,95209.0,95208.0,0.052534]
[1736339300966,0.3608,95210.0,95208.0,0.052534]
[1736339302672,0.01262144,95213.0,95203.0,0.001]
[1736339302872,0.052536,95205.0,95203.0,0.001]
[1736339303170,0.052536,95205.0,95202.0,0.052538]
[1736339303565,0.004,95210.0,95200.0,0.3608]
[1736339303566,0.052538,95201.0,95200.0,0.3608]
[1736339303762,0.052541,95196.0,95181.0,0.0683]
[1736339303963,0.3608,95195.0,95191.0,0.523184]
[1736339304164,0.413342,95195.0,95191.0,0.523184]
[1736339304360,0.3608,95195.0,95191.0,0.523184]
[1736339304569,0.3608,95195.0,95191.0,0.47064]
[1736339304769,0.052543,95193.0,95191.0,0.47064]
[1736339304966,0.052543,95193.0,95191.0,0.47264]
[1736339306076,0.052543,95193.0,95191.0,0.47364]
[1736339306467,0.052543,95193.0,95191.0,0.47164]
[1736339306780,0.055543,95193.0,95191.0,0.47364]
[1736339307366,0.055543,95193.0,95191.0,0.47164]
[1736339307566,0.055543,95193.0,95191.0,0.47264]
[1736339309467,0.055543,95193.0,95191.0,0.002]
[1736339312078,0.052543,95192.0,95191.0,0.002]
[1736339313372,0.055543,95192.0,95191.0,0.002]
[1736339314470,0.055543,95192.0,95191.0,0.003]
[1736339316271,0.055543,95192.0,95191.0,0.002]
[1736339319679,0.052543,95192.0,95191.0,0.001]
[1736339319867,0.055543,95192.0,95191.0,0.002]
[1736339320273,0.052543,95192.0,95191.0,0.001]
[1736339320469,0.055543,95192.0,95191.0,0.001]
[1736339320772,0.055543,95192.0,95191.0,0.002]
[1736339333090,0.13270679,95192.0,95191.0,0.002]
[1736339333793,0.03270679,95192.0,95191.0,0.002]
[1736339333991,0.052543,95192.0,95191.0,0.002]
[1736339341994,0.12971099,95192.0,95191.0,0.002]
[1736339342288,0.12971099,95192.0,95191.0,0.001]
[1736339342491,0.052554,95172.0,95171.0,0.0672]
[1736339343596,0.052555,95170.0,95162.0,0.05256]
[1736339345198,0.052555,95170.0,95169.0,0.0653]
[1736339345888,0.052555,95170.0,95169.0,0.0703]
[1736339346188,0.06454134,95170.0,95169.0,0.0703]
[1736339346696,0.06554134,95170.0,95169.0,0.0663]
[1736339350291,0.06554134,95170.0,95169.0,0.0653]
[1736339350496,0.06554134,95170.0,95169.0,0.0663]
[1736339353198,0.01298634,95170.0,95140.0,0.3608]
[1736339353389,0.052571,95141.0,95133.0,0.0714]
[1736339353589,0.052579,95129.0,95127.0,0.0687]
[1736339353789,0.052579,95127.0,95126.0,0.16089761]
[1736339354300,0.052585,95117.0,95116.0,0.3608]
[1736339354596,0.0526661,95117.0,95116.0,0.3608]
[1736339356490,0.0526661,95117.0,95116.0,0.3668]
[1736339356694,0.0546661,95117.0,95116.0,0.3668]
[1736339357399,0.0546661,95117.0,95116.0,0.006]
[1736339357900,0.06650901,95117.0,95116.0,0.006]
[1736339358995,0.06659587,95117.0,95116.0,0.006]
[1736339359394,0.06650901,95117.0,95116.0,0.006]
[1736339360197,0.052594,95101.0,95097.0,0.0683]
[1736339360593,0.05268086,95101.0,95097.0,0.0683]
[1736339362197,0.05368086,95101.0,95100.0,0.10857719]
[1736339362707,0.05868086,95101.0,95100.0,0.10957719]
[1736339364004,0.00608686,95101.0,95100.0,0.10957719]
[1736339364200,0.01788839,95101.0,95100.0,0.10957719]
[1736339366204,0.00608686,95101.0,95100.0,0.10957719]
[1736339366409,0.052586,95115.0,95105.0,0.052591]
[1736339366708,0.052587,95114.0,95105.0,0.052591]
[1736339366910,0.052587,95113.0,95105.0,0.052591]
[1736339367604,0.05259,95108.0,95100.0,0.10857719]
[1736339367804,0.008,95115.0,95105.0,0.001]
[1736339368011,0.008,95115.0,95113.0,0.052587]
[1736339368610,0.008,95115.0,95114.0,0.0744]
[1736339369000,0.008,95115.0,95114.0,0.4352]
[1736339369403,0.052582,95122.0,95114.0,0.5101]
[1736339369606,0.052582,95122.0,95116.0,0.052585]
[1736339369802,0.052582,95122.0,95117.0,0.0704]
[1736339370005,0.06399466,95122.0,95117.0,0.0704]
[1736339370208,0.06399466,95122.0,95118.0,0.052584]
[1736339370604,0.06599466,95122.0,95118.0,0.052584]
[1736339371001,0.01341266,95122.0,95117.0,0.0704]
[1736339371198,0.002,95122.0,95120.0,0.052583]
[1736339372509,0.01192697,95131.0,95128.0,0.052578]
[1736339372716,0.052577,95132.0,95128.0,0.052578]
[1736339372912,0.256677,95147.0,95128.0,0.052578]
[1736339373116,0.052569,95146.0,95128.0,0.052578]
[1736339373418,0.256677,95147.0,95129.0,0.052578]
[1736339373601,0.256677,95147.0,95124.0,0.3608]
[1736339373805,0.052574,95136.0,95130.0,0.052577]
[1736339374003,0.007,95132.0,95130.0,0.052577]
[1736339374617,0.052574,95136.0,95131.0,0.052577]
[1736339376219,0.007,95132.0,95131.0,0.052577]
[1736339376919,0.052575,95135.0,95131.0,0.055577]
[1736339377418,0.007,95132.0,95131.0,0.055577]
[1736339379010,0.01174601,95136.0,95131.0,0.054577]
[1736339379221,0.052573,95139.0,95134.0,0.3608]
[1736339379222,0.007,95135.0,95134.0,0.3608]
[1736339379620,0.052573,95139.0,95134.0,0.3608]
[1736339380321,0.007,95135.0,95134.0,0.3618]
[1736339380819,0.052573,95139.0,95134.0,0.3628]
[1736339380820,0.07148028,95139.0,95134.0,0.3628]
[1736339381025,0.07148028,95139.0,95135.0,0.052575]
[1736339381414,0.01890728,95139.0,95136.0,0.052574]
[1736339382630,0.052574,95138.0,95134.0,0.3618]
[1736339382816,0.01890728,95139.0,95134.0,0.3628]
[1736339383128,0.007,95135.0,95134.0,0.415375]
[1736339383620,0.007,95139.0,95136.0,0.053574]
[1736339384231,0.06426932,95143.0,95136.0,0.053574]
[1736339384526,0.06426932,95143.0,95137.0,0.052573]
[1736339385632,0.052571,95142.0,95137.0,0.052573]
[1736339385821,0.052572,95141.0,95137.0,0.052573]
[1736339386021,0.007,95139.0,95137.0,0.052573]
[1736339386526,0.052572,95141.0,95137.0,0.052573]
[1736339386726,0.052572,95141.0,95137.0,0.053573]
[1736339386929,0.052572,95141.0,95138.0,0.052573]
[1736339387323,0.007,95139.0,95138.0,0.052573]
[1736339388128,0.059572,95141.0,95138.0,0.052573]
[1736339388817,0.059572,95141.0,95138.0,0.126473]
[1736339389339,0.059572,95141.0,95138.0,0.1264046]
[1736339389924,0.059572,95141.0,95138.0,0.1274046]
[1736339390126,0.007,95139.0,95138.0,0.1284046]
[1736339390930,0.059572,95141.0,95138.0,0.1284046]
[1736339391327,0.007,95141.0,95140.0,0.413372]
[1736339393030,0.05257,95144.0,95141.0,0.052571]
[1736339394632,0.05957,95144.0,95141.0,0.053571]
[1736339395236,0.05957,95144.0,95141.0,0.055571]
[1736339396040,0.05957,95144.0,95143.0,0.05257]
[1736339397651,0.05957,95144.0,95143.0,0.05357]
[1736339398638,0.07138183,95144.0,95143.0,0.05557]
[1736339399538,0.07138183,95144.0,95143.0,0.05457]
[1736339399939,0.43218183,95144.0,95143.0,0.002]
[1736339400635,0.42518183,95144.0,95143.0,0.001]
[1736339400836,0.43218183,95144.0,95143.0,0.002]
[1736339401229,0.42518183,95144.0,95143.0,0.001]
[1736339401431,0.50938346,95144.0,95143.0,0.002]
[1736339401841,0.50938346,95144.0,95143.0,0.001]
[1736339402046,0.50938346,95144.0,95143.0,0.002]
[1736339402343,0.50938346,95144.0,95143.0,0.001]
[1736339405940,0.052581,95124.0,95121.0,0.052582]
[1736339406144,0.052581,95124.0,95110.0,0.3608]
[1736339406348,0.052581,95125.0,95110.0,0.3608]
[1736339406649,0.052586,95116.0,95110.0,0.51948354]
[1736339406839,0.052586,95116.0,95112.0,0.523787]
[1736339407339,0.3608,95134.0,95112.0,0.4712]
[1736339407340,0.007,95124.0,95112.0,0.4712]
[1736339407541,0.052582,95123.0,95118.0,0.052584]
[1736339408038,0.22050849,95119.0,95118.0,0.052584]
[1736339408233,0.22050849,95119.0,95118.0,0.413384]
[1736339408839,0.052582,95122.0,95118.0,0.413384]
[1736339409039,0.007,95124.0,95118.0,0.413384]
[1736339409546,0.052583,95120.0,95118.0,0.3648]
[1736339410448,0.22050849,95128.0,95118.0,0.3658]
[1736339410638,0.22050849,95128.0,95127.0,0.413379]
[1736339411043,0.052575,95134.0,95127.0,0.3608]
[1736339411246,0.052575,95134.0,95133.0,0.052576]
[1736339411646,0.22050849,95141.0,95128.0,0.1442]
[1736339411857,0.052578,95130.0,95128.0,0.0709]
[1736339413544,0.052578,95130.0,95128.0,0.0729]
[1736339414042,0.052578,95130.0,95128.0,0.002]
[1736339414342,0.052578,95130.0,95128.0,0.003]
[1736339416955,0.06419524,95130.0,95128.0,0.003]
[1736339418054,0.01161724,95130.0,95129.0,0.3608]
[1736339418251,0.22050849,95132.0,95129.0,0.413378]
[1736339418444,0.23170237,95132.0,95129.0,0.052578]
[1736339418646,0.01119388,95132.0,95128.0,0.003]
[1736339418841,0.052578,95130.0,95128.0,0.003]
[1736339419249,0.3608,95129.0,95128.0,0.003]
[1736339419453,0.4987,95129.0,95128.0,0.003]
[1736339419655,0.5701,95129.0,95109.0,0.3608]
[1736339420054,0.5701,95129.0,95110.0,0.10609554]
[1736339420457,0.5701,95129.0,95109.0,0.3608]
[1736339420458,0.052581,95123.0,95119.0,0.10609554]
[1736339420759,0.052581,95123.0,95118.0,0.413384]
[1736339420943,0.052581,95123.0,95118.0,0.052584]
[1736339421255,0.052583,95121.0,95113.0,0.10609554]
[1736339421445,0.052583,95121.0,95114.0,0.052586]
[1736339421652,0.052583,95121.0,95119.0,0.001]
[1736339421853,0.4314,95129.0,95119.0,0.001]
[1736339422053,0.052583,95120.0,95119.0,0.001]
[1736339423250,0.052583,95120.0,95114.0,0.052586]
[1736339423446,0.052583,95120.0,95119.0,0.004]
[1736339424054,0.054583,95120.0,95119.0,0.005]
[1736339424358,0.054583,95120.0,95119.0,0.001]
[1736339425151,0.415383,95120.0,95119.0,0.001]
[1736339426058,0.415383,95120.0,95119.0,0.005]
[1736339427451,0.415383,95120.0,95100.0,0.4644]
[1736339427452,0.45120828,95120.0,95100.0,0.4644]
[1736339427652,0.3608,95107.0,95100.0,0.1]
[1736339427855,0.0717,95106.0,95100.0,0.1]
[1736339428660,0.0717,95106.0,95102.0,0.001]
[1736339428856,0.052592,95103.0,95102.0,0.001]
[1736339429247,0.052592,95103.0,95102.0,0.007]
[1736339429762,0.27310049,95103.0,95102.0,0.007]
[1736339429951,0.27310049,95103.0,95102.0,0.002]
[1736339430353,0.27310049,95103.0,95102.0,0.001]
[1736339430548,0.052592,95103.0,95102.0,0.001]
[1736339430956,0.052592,95103.0,95102.0,0.002]
[1736339430957,0.07295135,95103.0,95102.0,0.002]
[1736339435360,0.02035935,95103.0,95100.0,0.07671341]
[1736339435650,0.052593,95101.0,95100.0,0.07671341]
[1736339436562,0.052593,95101.0,95100.0,0.07771341]
[1736339436766,0.052593,95101.0,95100.0,0.07871341]
[1736339437469,0.061593,95101.0,95100.0,0.07871341]
[1736339438856,0.009,95101.0,95100.0,0.07871341]
[1736339440371,0.009,95101.0,95100.0,0.13130741]
[1736339440564,0.22050849,95120.0,95100.0,0.07871341]
[1736339440768,0.22050849,95120.0,95113.0,0.3608]
[1736339441062,0.22050849,95120.0,95118.0,0.052584]
[1736339441266,0.22050849,95120.0,95119.0,0.0693]
[1736339441573,0.01141331,95123.0,95122.0,0.052582]
[1736339441873,0.052575,95134.0,95122.0,0.3608]
[1736339442076,0.1,95140.0,95133.0,0.3608]
[1736339442375,0.20535687,95138.0,95136.0,0.413374]
[1736339442573,0.1,95140.0,95136.0,0.3608]
[1736339442761,0.1,95140.0,95139.0,0.052572]
[1736339443966,0.1,95140.0,95139.0,0.053572]
[1736339444452,0.1,95140.0,95139.0,0.052572]
[1736339444758,0.1,95140.0,95139.0,0.053572]
[1736339445860,0.1,95140.0,95139.0,0.056572]
[1736339446261,0.102,95140.0,95139.0,0.056572]
[1736339446862,0.101,95140.0,95139.0,0.056572]
[1736339448058,0.1,95140.0,95139.0,0.055572]
[1736339448259,0.101,95140.0,95139.0,0.056572]
[1736339449865,0.102,95140.0,95139.0,0.056572]
[1736339454569,0.1,95140.0,95139.0,0.055572]
[1736339454768,0.102,95140.0,95139.0,0.056572]
[1736339456767,0.1,95140.0,95139.0,0.055572]
[1736339456970,0.102,95140.0,95139.0,0.055572]
[1736339457371,0.154572,95140.0,95139.0,0.003]
[1736339458567,0.154572,95140.0,95139.0,0.001]
[1736339458769,0.154572,95140.0,95139.0,0.002]
[1736339459972,0.152572,95140.0,95139.0,0.001]
[1736339460277,0.154572,95140.0,95139.0,0.002]
[1736339460775,0.102,95140.0,95139.0,0.002]
[1736339460977,0.102,95140.0,95139.0,0.415372]
[1736339461170,0.102,95140.0,95139.0,0.054572]
[1736339461383,0.102,95140.0,95139.0,0.415372]
[1736339461771,0.102,95140.0,95139.0,0.414372]
[1736339462780,0.102,95140.0,95139.0,0.417372]
[1736339463677,0.1,95140.0,95139.0,0.484872]
[1736339463881,0.102,95140.0,95139.0,0.485872]
[1736339464573,0.102,95140.0,95139.0,0.053572]
[1736339464875,0.1,95140.0,95139.0,0.003]
[1736339465071,0.102,95140.0,95139.0,0.004]
[1736339465272,0.1130409,95140.0,95139.0,0.004]
[1736339465572,0.1130409,95140.0,95131.0,0.3608]
[1736339465573,0.052576,95132.0,95131.0,0.3608]
[1736339467283,0.054576,95132.0,95131.0,0.3618]
[1736339467780,0.052576,95132.0,95131.0,0.3608]
[1736339467981,0.415376,95132.0,95131.0,0.001]
[1736339468279,0.415376,95132.0,95131.0,0.003]
[1736339468884,0.416376,95132.0,95131.0,0.001]
[1736339469571,0.416376,95132.0,95119.0,0.00157669]
[1736339469773,0.052583,95120.0,95119.0,0.00157669]
[1736339470485,0.052584,95119.0,95102.0,0.47112]
[1736339470676,0.3608,95113.0,95102.0,0.47112]
[1736339470881,0.05259,95107.0,95102.0,0.47112]
[1736339471074,0.413392,95104.0,95102.0,0.47112]
[1736339471384,0.413392,95104.0,95100.0,0.07671341]
[1736339471385,0.052593,95101.0,95100.0,0.07671341]
[1736339472870,0.052593,95101.0,95100.0,0.07871341]
[1736339473769,0.057593,95101.0,95100.0,0.07971341]
[1736339473968,0.06911324,95101.0,95100.0,0.07971341]
[1736339474674,0.06911324,95101.0,95100.0,0.07871341]
[1736339476569,0.01652024,95101.0,95090.0,0.00157719]
[1736339476786,0.052599,95091.0,95090.0,0.00157719]
[1736339477978,0.052595,95098.0,95090.0,0.00157719]
[1736339478178,0.004,95091.0,95090.0,0.00257719]
[1736339478383,0.004,95091.0,95090.0,0.00557719]
[1736339478983,0.004,95091.0,95090.0,0.07357719]
[1736339479486,0.413387,95113.0,95100.0,0.052594]
[1736339479690,0.052589,95110.0,95102.0,0.052593]
[1736339479980,0.37183821,95113.0,95101.0,0.4264]
[1736339480785,0.052591,95106.0,95101.0,0.4264]
[1736339481179,0.052591,95106.0,95102.0,0.001]
[1736339481883,0.052592,95104.0,95102.0,0.001]
[1736339483292,0.065,95103.0,95102.0,0.001]
[1736339484283,0.065,95103.0,95102.0,0.002]
[1736339484895,0.065,95103.0,95102.0,0.001]
[1736339485089,0.065,95103.0,95102.0,0.002]
[1736339486687,0.052592,95104.0,95102.0,0.002]
[1736339488096,0.053592,95104.0,95102.0,0.002]
[1736339488292,0.06505388,95104.0,95102.0,0.002]
[1736339488495,0.42585388,95104.0,95102.0,0.002]
[1736339491302,0.06505388,95104.0,95102.0,0.002]
[1736339492704,0.42585388,95104.0,95102.0,0.002]
[1736339493300,0.42585388,95104.0,95095.0,0.3608]
[1736339493499,0.052599,95091.0,95090.0,0.00157719]
[1736339494805,0.053599,95091.0,95090.0,0.00257719]
[1736339496194,0.001,95091.0,95090.0,0.00257719]
[1736339496410,0.001,95091.0,95090.0,0.00557719]
[1736339497095,0.053599,95091.0,95090.0,0.00557719]
[1736339497809,0.06492961,95091.0,95090.0,0.00557719]
[1736339501312,0.28972961,95104.0,95090.0,0.00557719]
[1736339501611,0.30101419,95104.0,95090.0,0.00557719]
[1736339502010,0.052599,95091.0,95090.0,0.00557719]
[1736339502407,0.052599,95091.0,95090.0,0.00457719]
[1736339502609,0.052599,95091.0,95090.0,0.00557719]
[1736339504614,0.052599,95091.0,95090.0,0.00157719]
[1736339504806,0.053599,95091.0,95090.0,0.004]
[1736339506314,0.06487374,95091.0,95090.0,0.004]
[1736339506516,0.14212385,95091.0,95090.0,0.004]
[1736339508207,0.06487374,95091.0,95090.0,0.004]
[1736339515612,0.01227474,95091.0,95090.0,0.004]
[1736339520010,0.06487374,95091.0,95090.0,0.004]
[1736339520208,0.06487374,95091.0,95083.0,0.3608]
[1736339520410,0.052603,95084.0,95083.0,0.3608]
[1736339521516,0.052603,95084.0,95083.0,0.3648]
[1736339522114,0.052603,95084.0,95083.0,0.3608]
[1736339522314,0.052603,95084.0,95083.0,0.3658]
[1736339522714,0.12985081,95084.0,95083.0,0.3658]
[1736339522921,0.12985081,95084.0,95083.0,0.3648]
[1736339523120,0.13185081,95084.0,95083.0,0.3658]
[1736339523517,0.12985081,95084.0,95083.0,0.3648]
[1736339523713,0.055603,95084.0,95083.0,0.3658]
[1736339524119,0.055603,95084.0,95083.0,0.3638]
[1736339524320,0.003,95084.0,95083.0,0.3638]
[1736339527132,0.052603,95083.0,95075.0,0.3608]
[1736339527314,0.052607,95077.0,95075.0,0.3608]
[1736339528326,0.052607,95077.0,95075.0,0.3638]
[1736339528529,0.052607,95077.0,95075.0,0.3648]
[1736339529222,0.052604,95082.0,95075.0,0.3648]
[1736339529424,0.052604,95082.0,95076.0,0.052607]
[1736339529629,0.003,95077.0,95076.0,0.052607]
[1736339530818,0.003,95077.0,95075.0,0.3648]
[1736339531017,0.003,95077.0,95075.0,0.3618]
[1736339531220,0.003,95077.0,95076.0,0.003]
[1736339531425,0.052606,95079.0,95076.0,0.004]
[1736339531614,0.052607,95078.0,95076.0,0.004]
[1736339532022,0.052607,95076.0,95075.0,0.3648]
[1736339532620,0.052607,95076.0,95075.0,0.003]
[1736339533831,0.01369306,95076.0,95070.0,0.47116]
[1736339534135,0.05261,95071.0,95070.0,0.47116]
[1736339535131,0.05261,95071.0,95070.0,0.47216]
[1736339535529,0.05261,95071.0,95070.0,0.47116]
[1736339535730,0.05661,95071.0,95070.0,0.47216]
[1736339537029,0.05661,95071.0,95070.0,0.47616]
[1736339538536,0.05661,95071.0,95053.0,0.2206]
[1736339538732,0.05661,95071.0,95040.0,0.2206]
[1736339538733,0.7216,95062.0,95040.0,0.2206]
[1736339538938,0.052627,95041.0,95040.0,0.2206]
[1736339540229,0.413427,95041.0,95040.0,0.2206]
[1736339540433,0.052634,95028.0,95027.0,0.1869717]
[1736339540631,0.052634,95028.0,95022.0,0.3608]
[1736339541527,0.057634,95028.0,95022.0,0.3608]
[1736339541731,0.0692,95027.0,95022.0,0.3608]
[1736339541937,0.0692,95027.0,95026.0,0.00657805]
[1736339542840,0.0732,95027.0,95026.0,0.00657805]
[1736339543243,0.0732,95027.0,95026.0,0.005]
[1736339543741,0.08727017,95027.0,95026.0,0.005]
[1736339544131,0.08727017,95027.0,95015.0,0.5]
[1736339544333,0.14090417,95027.0,95026.0,0.005]
[1736339544542,0.14090417,95027.0,95015.0,0.5]
[1736339544543,0.052641,95016.0,95015.0,0.5]
[1736339544843,0.052649,95001.0,95000.0,0.1]
[1736339546038,0.061649,95001.0,95000.0,0.101]
[1736339547136,0.0758873,95001.0,95000.0,0.101]
[1736339547944,0.0232383,95001.0,95000.0,0.101]
[1736339548339,0.0242383,95001.0,95000.0,0.101]
[1736339548636,0.0768873,95001.0,95000.0,0.101]
[1736339550244,0.0242383,95001.0,95000.0,0.101]
[1736339550940,0.01,95001.0,95000.0,0.101]
[1736339551139,0.10609554,95020.0,95000.0,0.101]
[1736339551340,0.10609554,95030.0,95009.0,0.3608]
[1736339551547,0.10609554,95020.0,95010.0,0.1311]
[1736339551742,0.052642,95014.0,95010.0,0.1311]
[1736339551949,0.052643,95012.0,95010.0,0.1311]
[1736339554147,0.054643,95012.0,95010.0,0.1311]
[1736339554350,0.054643,95012.0,95011.0,0.0654]